fUST/lending_fUST_20240408
["ID","MTS","AMOUNT","RATE_DAILY","PERIOD"]
[321846903,1712562648582,-532.69834984,0.00026301,2]
[321846904,1712562648591,-500.0,0.00026301,2]
[321846905,1712562648600,-500.0,0.00026301,2]
[321846906,1712562648609,-530.2717611,0.00026301,2]
[321846907,1712562648618,-500.0,0.00026301,2]
[321846908,1712562648627,-2825.18,0.00026301,2]
[321846909,1712562648636,-500.0,0.00026301,2]
[321846910,1712562648645,-519.54376354,0.00026301,2]
[321846911,1712562648654,-500.0,0.00026301,2]
[321846912,1712562648663,-500.0,0.00026301,2]
[321846913,1712562648672,-500.0,0.00026301,2]
[321846914,1712562648683,-500.0,0.00026301,2]
[321846915,1712562648756,-500.0,0.00026301,2]
[321846916,1712562648766,-1320.93,0.00026301,2]
[321846917,1712562648776,-500.0,0.00026301,2]
[321846918,1712562648785,-978.67,0.00026301,2]
[321846919,1712562648794,-500.0,0.00026301,2]
[321846920,1712562648803,-500.0,0.00026301,2]
[321846921,1712562648813,-500.0,0.00026301,2]
[321846922,1712562648822,-500.0,0.00026301,2]
[321846923,1712562648831,-500.0,0.00026301,2]
[321846924,1712562648841,-500.0,0.00026301,2]
[321846925,1712562648850,-4435.2,0.00026301,2]
[321846926,1712562648859,-500.0,0.00026301,2]
[321846927,1712562648869,-4257.06,0.00026301,2]
[321846928,1712562648878,-3460.88,0.00026301,2]
[321846929,1712562648887,-638.52,0.00026301,2]
[321846930,1712562648896,-500.0,0.00026301,2]
[321846931,1712562648905,-9186.73,0.00026301,2]
[321846932,1712562648914,-583.7,0.00026301,2]
[321846933,1712562648923,-631.35,0.00026301,2]
[321846934,1712562648934,-500.0,0.00026301,2]
[321846935,1712562648943,-500.0,0.00026301,2]
[321846936,1712562648953,-500.0,0.00026301,2]
[321846937,1712562648963,-3081.78,0.00026301,2]
[321846938,1712562648973,-500.0,0.00026301,2]
[321846939,1712562648982,-956.28,0.00026301,2]
[321846940,1712562648991,-500.0,0.00026301,2]
[321846941,1712562649000,-500.0,0.00026301,2]
[321846942,1712562649009,-500.0,0.00026301,2]
[321846943,1712562649019,-16438.35,0.00026301,2]
[321846944,1712562649028,-500.0,0.00026301,2]
[321846945,1712562649038,-3926.54,0.00026301,2]
[321846946,1712562649047,-500.0,0.00026301,2]
[321846947,1712562649056,-542.15519992,0.00026301,2]
[321846948,1712562649066,-823.66,0.00026301,2]
[321846949,1712562649075,-1028.84,0.00026301,2]
[321846950,1712562649084,-500.0,0.00026301,2]
[321846951,1712562649093,-500.0,0.00026301,2]
[321846952,1712562649102,-1864.26,0.00026301,2]
[321846953,1712562649111,-500.0,0.00026301,2]
[321846954,1712562649121,-402.74371047,0.00026301,2]
[321846955,1712562649130,-500.0,0.00026301,2]
[321846956,1712562649139,-782.37,0.00026301,2]
[321846957,1712562649148,-500.0,0.00026301,2]
[321846958,1712562649158,-5545.12,0.00026301,2]
[321846959,1712562649169,-500.0,0.00026301,2]
[321846960,1712562649180,-1977.17,0.00026301,2]
[321846961,1712562649192,-627.35,0.00026301,2]
[321846962,1712562649201,-765.09,0.00026301,2]
[321846963,1712562649213,-532.81,0.00026301,2]
[321846964,1712562649223,-1192.42,0.00026301,2]
[321846965,1712562649232,-513.22250953,0.00026301,2]
[321846966,1712562649241,-515.57503299,0.00026301,2]
[321846967,1712562649251,-1164.07,0.00026301,2]
[321846968,1712562649261,-572.8,0.00026301,2]
[321846969,1712562649271,-500.0,0.00026301,2]
[321846970,1712562649280,-150.95471359,0.00026315,7]
[321846971,1712562649289,-153.0,0.00026356,2]
[321846972,1712562649298,-153.0,0.00026356,2]
[321846973,1712562649307,-153.0,0.00026356,2]
[321846974,1712562649317,-153.0,0.00026356,2]
[321846975,1712562649325,-153.0,0.00026356,2]
[321846976,1712562649335,-153.0,0.00026356,2]
[321846977,1712562649344,-153.0,0.00026356,2]
[321846978,1712562649353,-153.0,0.00026356,2]
[321846979,1712562649363,-153.0,0.00026356,2]
[321846980,1712562649372,-153.0,0.00026356,2]
[321846981,1712562649381,-153.0,0.00026356,2]
[321846982,1712562649390,-153.0,0.00026356,2]
[321846983,1712562649400,-153.0,0.00026356,2]
[321846984,1712562649410,-153.0,0.00026356,2]
[321846985,1712562649419,-153.0,0.00026356,2]
[321846986,1712562649429,-306.0,0.00026356,2]
[321846987,1712562649444,-150.0,0.00026399,2]
[321846988,1712562649454,-255.11779945,0.00026575,2]
[321846989,1712562649463,-645.79,0.00026575,2]
[321846990,1712562649474,-905.93,0.00026575,2]
[321846991,1712562649485,-343.5394397,0.00026575,2]
[321846992,1712562649495,-500.0,0.00026575,2]
[321846993,1712562649504,-500.0,0.00026575,2]
[321846994,1712562649513,-292.71324617,0.00026575,2]
[321846995,1712562649523,-552.71935138,0.00026575,2]
[321846996,1712562649533,-639.69,0.00026575,2]
[321846997,1712562649543,-500.0,0.00026575,2]
[321846998,1712562649552,-500.0,0.00026575,2]
[321846999,1712562649563,-500.0,0.00026575,2]
[321847000,1712562649577,-500.0,0.00026575,2]
[321847001,1712562649590,-633.78174676,0.00026575,2]
[321847002,1712562649601,-267.35401193,0.00026575,2]
[321847003,1712562649613,-500.0,0.00026575,2]
[321847004,1712562649625,-537.05,0.00026575,2]
[321847005,1712562649635,-2551.9,0.00026575,2]
[321847006,1712562649647,-523.71104946,0.00026575,2]
[321847007,1712562649658,-514.27947821,0.00026575,2]
[321847008,1712562649669,-628.93868668,0.00026575,2]
[321847009,1712562649680,-218.2190579,0.00026575,2]
[321847010,1712562649697,-500.0,0.00026575,2]
[321847011,1712562649707,-500.0,0.00026575,2]
[321847012,1712562649718,-701.21,0.00026575,2]
[321847013,1712562649728,-500.0,0.00026575,2]
[321847014,1712562649739,-718.57,0.00026575,2]
[321847015,1712562649749,-539.51,0.00026575,2]
[321847016,1712562649758,-693.34,0.00026575,2]
[321847017,1712562649769,-500.0,0.00026575,2]
[321847018,1712562649779,-500.0,0.00026575,2]
[321847019,1712562649788,-206.45872263,0.00026575,2]
[321847020,1712562649797,-1033.43,0.00026575,2]
[321847021,1712562649807,-500.0,0.00026575,2]
[321847022,1712562649817,-500.0,0.00026575,2]
[321847023,1712562649827,-504.47711156,0.00026575,2]
[321847024,1712562649836,-500.0,0.00026575,2]
[321847025,1712562649846,-500.0,0.00026575,2]
[321847026,1712562649855,-500.0,0.00026575,2]
[321847027,1712562649864,-500.0,0.00026575,2]
[321847028,1712562649874,-500.0,0.00026575,2]
[321847029,1712562649883,-622.98360351,0.00026575,2]
[321847030,1712562649893,-500.0,0.00026575,2]
[321847031,1712562649902,-500.0,0.00026575,2]
[321847032,1712562649911,-2825.18,0.00026575,2]
[321847033,1712562649921,-500.0,0.00026575,2]
[321847034,1712562649930,-500.0,0.00026575,2]
[321847035,1712562649942,-500.0,0.00026575,2]
[321847036,1712562649951,-250.81033118,0.00026575,2]
[321847037,1712562649961,-500.0,0.00026575,2]
[321847038,1712562649970,-500.0,0.00026575,2]
[321847039,1712562649980,-1320.93,0.00026575,2]
[321847040,1712562649989,-500.0,0.00026575,2]
[321847041,1712562649998,-978.67,0.00026575,2]
[321847042,1712562650007,-500.0,0.00026575,2]
[321847043,1712562650016,-500.0,0.00026575,2]
[321847044,1712562650026,-500.0,0.00026575,2]
[321847045,1712562650034,-500.0,0.00026575,2]
[321847046,1712562650045,-500.0,0.00026575,2]
[321847047,1712562650054,-500.0,0.00026575,2]
[321847048,1712562650064,-4435.2,0.00026575,2]
[321847049,1712562650073,-500.0,0.00026575,2]
[321847050,1712562650083,-4257.06,0.00026575,2]
[321847051,1712562650092,-3460.88,0.00026575,2]
[321847052,1712562650102,-638.52,0.00026575,2]
[321847053,1712562650111,-500.0,0.00026575,2]
[321847054,1712562650121,-9186.73,0.00026575,2]
[321847055,1712562650130,-583.7,0.00026575,2]
[321847056,1712562650139,-631.35,0.00026575,2]
[321847057,1712562650149,-500.0,0.00026575,2]
[321847058,1712562650158,-500.0,0.00026575,2]
[321847059,1712562650170,-500.0,0.00026575,2]
[321847060,1712562650179,-3081.78,0.00026575,2]
[321847061,1712562650191,-500.0,0.00026575,2]
[321847062,1712562650200,-956.28,0.00026575,2]
[321847063,1712562650211,-475.35385882,0.00026575,2]
[321847064,1712562650220,-500.0,0.00026575,2]
[321847065,1712562650229,-500.0,0.00026575,2]
[321847066,1712562650240,-16438.35,0.00026575,2]
[321847067,1712562650250,-500.0,0.00026575,2]
[321847068,1712562650259,-3926.54,0.00026575,2]
[321847069,1712562650268,-550.99131869,0.00026575,2]
[321847070,1712562650279,-823.66,0.00026575,2]
[321847071,1712562650289,-1028.84,0.00026575,2]
[321847072,1712562650299,-500.0,0.00026575,2]
[321847073,1712562650310,-500.0,0.00026575,2]
[321847074,1712562650320,-1864.26,0.00026575,2]
[321847075,1712562650331,-500.0,0.00026575,2]
[321847076,1712562650412,-500.0,0.00026575,2]
[321847077,1712562650422,-782.37,0.00026575,2]
[321847078,1712562650432,-500.0,0.00026575,2]
[321847079,1712562650443,-5545.12,0.00026575,2]
[321847080,1712562650453,-500.0,0.00026575,2]
[321847081,1712562650462,-1977.17,0.00026575,2]
[321847082,1712562650472,-627.35,0.00026575,2]
[321847083,1712562650482,-765.09,0.00026575,2]
[321847084,1712562650492,-532.81,0.00026575,2]
[321847085,1712562650503,-1192.42,0.00026575,2]
[321847086,1712562650512,-1164.07,0.00026575,2]
[321847087,1712562650521,-572.8,0.00026575,2]
[321847088,1712562650531,-500.0,0.00026575,2]
[321847089,1712562650540,-587.0,0.00026635,2]
[321847090,1712562650550,-645.79,0.00026849,2]
[321847091,1712562650559,-905.93,0.00026849,2]
[321847092,1712562650568,-500.0,0.00026849,2]
[321847093,1712562650578,-500.0,0.00026849,2]
[321847094,1712562650587,-639.69,0.00026849,2]
[321847095,1712562650596,-331.31323713,0.00026849,2]
[321847096,1712562650606,-500.0,0.00026849,2]
[321847097,1712562650615,-500.0,0.00026849,2]
[321847098,1712562650624,-500.0,0.00026849,2]
[321847099,1712562650634,-500.0,0.00026849,2]
[321847100,1712562650643,-537.05,0.00026849,2]
[321847101,1712562650653,-2551.9,0.00026849,2]
[321847102,1712562650662,-500.0,0.00026849,2]
[321847103,1712562650671,-500.0,0.00026849,2]
[321847104,1712562650681,-701.21,0.00026849,2]
[321847105,1712562650693,-500.0,0.00026849,2]
[321847106,1712562650703,-718.57,0.00026849,2]
[321847107,1712562650712,-539.51,0.00026849,2]
[321847108,1712562650722,-693.34,0.00026849,2]
[321847109,1712562650732,-600.2669084,0.00026849,2]
[321847110,1712562650741,-500.0,0.00026849,2]
[321847111,1712562650751,-1033.43,0.00026849,2]
[321847112,1712562650761,-500.0,0.00026849,2]
[321847113,1712562650770,-500.0,0.00026849,2]
[321847114,1712562650779,-500.0,0.00026849,2]
[321847115,1712562650790,-500.0,0.00026849,2]
[321847116,1712562650800,-500.0,0.00026849,2]
[321847117,1712562650810,-500.0,0.00026849,2]
[321847118,1712562650819,-500.0,0.00026849,2]
[321847119,1712562650829,-531.38889523,0.00026849,2]
[321847120,1712562650838,-500.0,0.00026849,2]
[321847121,1712562650847,-2825.18,0.00026849,2]
[321847122,1712562650856,-500.0,0.00026849,2]
[321847123,1712562650866,-500.0,0.00026849,2]
[321847124,1712562650875,-500.0,0.00026849,2]
[321847125,1712562650885,-500.0,0.00026849,2]
[321847126,1712562650895,-500.0,0.00026849,2]
[321847127,1712562650904,-1320.93,0.00026849,2]
[321847128,1712562650913,-500.0,0.00026849,2]
[321847129,1712562650923,-978.67,0.00026849,2]
[321847130,1712562650932,-614.01600166,0.00026849,2]
[321847131,1712562650944,-500.0,0.00026849,2]
[321847132,1712562650953,-500.0,0.00026849,2]
[321847133,1712562650962,-500.0,0.00026849,2]
[321847134,1712562650972,-500.0,0.00026849,2]
[321847135,1712562650981,-500.0,0.00026849,2]
[321847136,1712562650991,-4435.2,0.00026849,2]
[321847137,1712562651001,-500.0,0.00026849,2]
[321847138,1712562651011,-4257.06,0.00026849,2]
[321847139,1712562651020,-3460.88,0.00026849,2]
[321847140,1712562651029,-638.52,0.00026849,2]
[321847141,1712562651038,-500.0,0.00026849,2]
[321847142,1712562651047,-9186.73,0.00026849,2]
[321847143,1712562651057,-583.7,0.00026849,2]
[321847144,1712562651066,-631.35,0.00026849,2]
[321847145,1712562651076,-500.0,0.00026849,2]
[321847146,1712562651085,-500.0,0.00026849,2]
[321847147,1712562651095,-500.0,0.00026849,2]
[321847148,1712562651104,-536.40857757,0.00026849,2]
[321847149,1712562651114,-3081.78,0.00026849,2]
[321847150,1712562651123,-956.28,0.00026849,2]
[321847151,1712562651132,-500.0,0.00026849,2]
[321847152,1712562651141,-500.0,0.00026849,2]
[321847153,1712562651152,-16438.35,0.00026849,2]
[321847154,1712562651161,-500.0,0.00026849,2]
[321847155,1712562651175,-3926.54,0.00026849,2]
[321847156,1712562651185,-823.66,0.00026849,2]
[321847157,1712562651195,-1028.84,0.00026849,2]
[321847158,1712562651204,-241.99750956,0.00026849,2]
[321847159,1712562651214,-500.0,0.00026849,2]
[321847160,1712562651223,-1864.26,0.00026849,2]
[321847161,1712562651232,-500.0,0.00026849,2]
[321847162,1712562651242,-565.53923802,0.00026849,2]
[321847163,1712562651251,-782.37,0.00026849,2]
[321847164,1712562651262,-500.0,0.00026849,2]
[321847165,1712562651271,-5545.12,0.00026849,2]
[321847166,1712562651280,-500.0,0.00026849,2]
[321847167,1712562651289,-1977.17,0.00026849,2]
[321847168,1712562651299,-627.35,0.00026849,2]
[321847169,1712562651309,-765.09,0.00026849,2]
[321847170,1712562651318,-532.81,0.00026849,2]
[321847171,1712562651328,-1192.42,0.00026849,2]
[321847172,1712562651337,-1164.07,0.00026849,2]
[321847173,1712562651348,-572.8,0.00026849,2]
[321847174,1712562651357,-500.0,0.00026849,2]
[321847175,1712562651367,-150.95471359,0.00026852,4]
[321847176,1712562651376,-150.676,0.00026994,2]
[321847177,1712562651385,-287.43922943,0.00027,2]
[321847178,1712562651394,-1573.13173796,0.00027,2]
[321847179,1712562651403,-163.30945191,0.000271,2]
[321847180,1712562651413,-645.79,0.00027123,2]
[321847181,1712562651423,-905.93,0.00027123,2]
[321847182,1712562651432,-500.0,0.00027123,2]
[321847183,1712562651443,-497.49018339,0.00027123,2]
[321847184,1712562651453,-639.69,0.00027123,2]
[321847185,1712562651463,-500.0,0.00027123,2]
[321847186,1712562651473,-417.24705241,0.00027123,2]
[321847187,1712562651491,-500.0,0.00027123,2]
[321847188,1712562651500,-500.0,0.00027123,2]
[321847189,1712562651510,-537.05,0.00027123,2]
[321847190,1712562651519,-2551.9,0.00027123,2]
[321847191,1712562651529,-500.0,0.00027123,2]
[321847192,1712562651538,-500.0,0.00027123,2]
[321847193,1712562651548,-701.21,0.00027123,2]
[321847194,1712562651558,-500.0,0.00027123,2]
[321847195,1712562651567,-718.57,0.00027123,2]
[321847196,1712562651577,-539.51,0.00027123,2]
[321847197,1712562651586,-693.34,0.00027123,2]
[321847198,1712562651596,-500.0,0.00027123,2]
[321847199,1712562651606,-1033.43,0.00027123,2]
[321847200,1712562651615,-500.0,0.00027123,2]
[321847201,1712562651625,-500.0,0.00027123,2]
[321847202,1712562651634,-500.0,0.00027123,2]
[321847203,1712562651644,-285.83965682,0.00027123,2]
[321847204,1712562651654,-500.0,0.00027123,2]
[321847205,1712562651663,-247.37459065,0.00027123,2]
[321847206,1712562651673,-500.0,0.00027123,2]
[321847207,1712562651682,-500.0,0.00027123,2]
[321847208,1712562651694,-2825.18,0.00027123,2]
[321847209,1712562651703,-500.0,0.00027123,2]
[321847210,1712562651712,-162.37051399,0.00027123,2]
[321847211,1712562651722,-500.0,0.00027123,2]
[321847212,1712562651731,-500.0,0.00027123,2]
[321847213,1712562651741,-513.96138726,0.00027123,2]
[321847214,1712562651750,-1320.93,0.00027123,2]
[321847215,1712562651760,-500.0,0.00027123,2]
[321847216,1712562651769,-978.67,0.00027123,2]
[321847217,1712562651779,-500.0,0.00027123,2]
[321847218,1712562651788,-500.0,0.00027123,2]
[321847219,1712562651798,-500.0,0.00027123,2]
[321847220,1712562651808,-500.0,0.00027123,2]
[321847221,1712562651817,-500.0,0.00027123,2]
[321847222,1712562651829,-4435.2,0.00027123,2]
[321847223,1712562651900,-500.0,0.00027123,2]
[321847224,1712562651910,-4257.06,0.00027123,2]
[321847225,1712562651920,-3460.88,0.00027123,2]
[321847226,1712562651929,-638.52,0.00027123,2]
[321847227,1712562651941,-500.0,0.00027123,2]
[321847228,1712562651951,-9186.73,0.00027123,2]
[321847229,1712562651961,-583.7,0.00027123,2]
[321847230,1712562651971,-631.35,0.00027123,2]
[321847231,1712562651981,-500.0,0.00027123,2]
[321847232,1712562651991,-500.0,0.00027123,2]
[321847233,1712562652001,-500.0,0.00027123,2]
[321847234,1712562652010,-3081.78,0.00027123,2]
[321847235,1712562652020,-956.28,0.00027123,2]
[321847236,1712562652030,-500.0,0.00027123,2]
[321847237,1712562652039,-500.0,0.00027123,2]
[321847238,1712562652049,-16438.35,0.00027123,2]
[321847239,1712562652059,-500.0,0.00027123,2]
[321847240,1712562652068,-3926.54,0.00027123,2]
[321847241,1712562652078,-823.66,0.00027123,2]
[321847242,1712562652087,-1028.84,0.00027123,2]
[321847243,1712562652096,-500.0,0.00027123,2]
[321847244,1712562652105,-1864.26,0.00027123,2]
[321847245,1712562652115,-500.0,0.00027123,2]
[321847246,1712562652124,-782.37,0.00027123,2]
[321847247,1712562652133,-500.0,0.00027123,2]
[321847248,1712562652143,-5545.12,0.00027123,2]
[321847249,1712562652152,-592.08311893,0.00027123,2]
[321847250,1712562652161,-1977.17,0.00027123,2]
[321847251,1712562652171,-627.35,0.00027123,2]
[321847252,1712562652184,-765.09,0.00027123,2]
[321847253,1712562652194,-532.81,0.00027123,2]
[321847254,1712562652204,-1192.42,0.00027123,2]
[321847255,1712562652213,-1164.07,0.00027123,2]
[321847256,1712562652223,-572.8,0.00027123,2]
[321847257,1712562652233,-169.08559982,0.00027123,2]
[321847258,1712562652242,-334.308849,0.000272,2]
[321847259,1712562652252,-199.999999,0.0002739,14]
[321847260,1712562652261,-645.79,0.00027397,2]
[321847261,1712562652270,-905.93,0.00027397,2]
[321847262,1712562652280,-500.0,0.00027397,2]
[321847263,1712562652289,-500.0,0.00027397,2]
[321847264,1712562652299,-500.0,0.00027397,2]
[321847265,1712562652308,-500.0,0.00027397,2]
[321847266,1712562652318,-500.0,0.00027397,2]
[321847267,1712562652326,-500.0,0.00027397,2]
[321847268,1712562652335,-500.0,0.00027397,2]
[321847269,1712562652346,-500.0,0.00027397,2]
[321847270,1712562652355,-644.73088808,0.00027397,2]
[321847271,1712562652364,-639.69,0.00027397,2]
[321847272,1712562652374,-500.0,0.00027397,2]
[321847273,1712562652383,-500.0,0.00027397,2]
[321847274,1712562652393,-500.0,0.00027397,2]
[321847275,1712562652403,-2551.9,0.00027397,2]
[321847276,1712562652412,-537.05,0.00027397,2]
[321847277,1712562652423,-500.0,0.00027397,14]
[321847278,1712562652433,-500.0,0.00027397,14]
[321847279,1712562652445,-500.0,0.00027397,14]
[321847280,1712562652455,-500.0,0.00027397,14]
[321847281,1712562652465,-500.0,0.00027397,14]
[321847282,1712562652475,-500.0,0.00027397,14]
[321847283,1712562652485,-500.50753159,0.00027397,14]
[321847284,1712562652495,-500.0,0.00027397,2]
[321847285,1712562652505,-500.0,0.00027397,2]
[321847286,1712562652514,-701.21,0.00027397,2]
[321847287,1712562652525,-500.0,0.00027397,2]
[321847288,1712562652538,-718.57,0.00027397,2]
[321847289,1712562652548,-539.51,0.00027397,2]
[321847290,1712562652558,-693.34,0.00027397,2]
[321847291,1712562652567,-500.0,0.00027397,2]
[321847292,1712562652577,-1033.43,0.00027397,2]
[321847293,1712562652588,-500.0,0.00027397,2]
[321847294,1712562652597,-500.0,0.00027397,2]
[321847295,1712562652607,-500.0,0.00027397,2]
[321847296,1712562652617,-500.0,0.00027397,2]
[321847297,1712562652627,-500.0,0.00027397,2]
[321847298,1712562652637,-500.0,0.00027397,2]
[321847299,1712562652647,-2825.18,0.00027397,2]
[321847300,1712562652656,-500.0,0.00027397,2]
[321847301,1712562652666,-500.0,0.00027397,2]
[321847302,1712562652676,-500.0,0.00027397,2]
[321847303,1712562652689,-1320.93,0.00027397,2]
[321847304,1712562652700,-500.0,0.00027397,2]
[321847305,1712562652711,-978.67,0.00027397,2]
[321847306,1712562652722,-573.03156331,0.00027397,2]
[321847307,1712562652732,-500.0,0.00027397,2]
[321847308,1712562652742,-500.0,0.00027397,2]
[321847309,1712562652754,-327.23811795,0.00027397,2]
[321847310,1712562652764,-500.0,0.00027397,2]
[321847311,1712562652774,-4435.2,0.00027397,2]
[321847312,1712562652784,-500.0,0.00027397,2]
[321847313,1712562652793,-4257.06,0.00027397,2]
[321847314,1712562652802,-3460.88,0.00027397,2]
[321847315,1712562652815,-638.52,0.00027397,2]
[321847316,1712562652824,-500.0,0.00027397,2]
[321847317,1712562652833,-9186.73,0.00027397,2]
[321847318,1712562652843,-583.7,0.00027397,2]
[321847319,1712562652853,-631.35,0.00027397,2]
[321847320,1712562652862,-500.0,0.00027397,2]
[321847321,1712562652872,-500.0,0.00027397,2]
[321847322,1712562652881,-500.0,0.00027397,2]
[321847323,1712562652891,-3081.78,0.00027397,2]
[321847324,1712562652900,-956.28,0.00027397,2]
[321847325,1712562652909,-500.0,0.00027397,2]
[321847326,1712562652919,-500.0,0.00027397,2]
[321847327,1712562652928,-16438.35,0.00027397,2]
[321847328,1712562652938,-500.0,0.00027397,2]
[321847329,1712562652947,-3926.54,0.00027397,2]
[321847330,1712562652957,-823.66,0.00027397,2]
[321847331,1712562652966,-1028.84,0.00027397,2]
[321847332,1712562652976,-500.0,0.00027397,2]
[321847333,1712562652985,-1864.26,0.00027397,2]
[321847334,1712562652995,-500.0,0.00027397,2]
[321847335,1712562653004,-782.37,0.00027397,2]
[321847336,1712562653013,-500.0,0.00027397,2]
[321847337,1712562653023,-5545.12,0.00027397,2]
[321847338,1712562653032,-1977.17,0.00027397,2]
[321847339,1712562653042,-627.35,0.00027397,2]
[321847340,1712562653051,-765.09,0.00027397,2]
[321847341,1712562653060,-532.81,0.00027397,2]
[321847342,1712562653069,-1192.42,0.00027397,2]
[321847343,1712562653078,-1000.0,0.00027397,7]
[321847344,1712562653088,-1000.0,0.00027397,7]
[321847345,1712562653096,-1000.0,0.00027397,7]
[321847346,1712562653106,-1000.0,0.00027397,7]
[321847347,1712562653115,-234.23402595,0.00027397,7]
[321847348,1712562653124,-1164.07,0.00027397,2]
[321847349,1712562653133,-572.8,0.00027397,2]
[321847350,1712562653143,-191.107627,0.00027397,2]
[321847351,1712562653151,-164.619341,0.00027397,2]
[321847352,1712562653161,-151.0,0.00027397,2]
[321847353,1712562653174,-151.0,0.00027397,2]
[321847354,1712562653184,-298.0,0.00027397,2]
[321847355,1712562653196,-281.503435,0.00027397,2]
[321847356,1712562653206,-150.0,0.00027399,2]
[321847357,1712562653215,-150.95471359,0.000274,2]
[321847358,1712562653224,-226377.61535237,0.000274,2]
[321847359,1712562653289,-593.31896726,0.00027498,2]
[321847360,1712562653299,-29842.16136561,0.000275,2]
[321847361,1712562653308,-500.0,0.000275,2]
[321847362,1712562653317,-799.19959429,0.000275,17]
[321847363,1712562653326,-1634.032882,0.000275,2]
[321847364,1712562653336,-202.3408005,0.00027534,2]
[321847365,1712562653345,-585.0,0.000276,2]
[321847366,1712562653354,-645.79,0.00027671,2]
[321847367,1712562653363,-905.93,0.00027671,2]
[321847368,1712562653371,-500.0,0.00027671,2]
[321847369,1712562653380,-639.69,0.00027671,2]
[321847370,1712562653389,-500.0,0.00027671,2]
[321847371,1712562653399,-500.0,0.00027671,2]
[321847372,1712562653409,-500.0,0.00027671,2]
[321847373,1712562653417,-2551.9,0.00027671,2]
[321847374,1712562653426,-537.05,0.00027671,2]
[321847375,1712562653437,-523.60970738,0.00027671,2]
[321847376,1712562653447,-500.0,0.00027671,2]
[321847377,1712562653457,-701.21,0.00027671,2]
[321847378,1712562653467,-500.0,0.00027671,2]
[321847379,1712562653476,-718.57,0.00027671,2]
[321847380,1712562653485,-539.51,0.00027671,2]
[321847381,1712562653495,-693.34,0.00027671,2]
[321847382,1712562653504,-500.0,0.00027671,2]
[321847383,1712562653514,-1033.43,0.00027671,2]
[321847384,1712562653523,-500.0,0.00027671,2]
[321847385,1712562653533,-326.17764637,0.00027671,2]
[321847386,1712562653542,-500.0,0.00027671,2]
[321847387,1712562653551,-500.0,0.00027671,2]
[321847388,1712562653561,-500.0,0.00027671,2]
[321847389,1712562653570,-500.0,0.00027671,2]
[321847390,1712562653580,-2825.18,0.00027671,2]
[321847391,1712562653589,-395.91081532,0.00027671,2]
[321847392,1712562653600,-500.0,0.00027671,2]
[321847393,1712562653609,-500.0,0.00027671,2]
[321847394,1712562653618,-1320.93,0.00027671,2]
[321847395,1712562653628,-500.0,0.00027671,2]
[321847396,1712562653637,-978.67,0.00027671,2]
[321847397,1712562653646,-500.0,0.00027671,2]
[321847398,1712562653655,-500.0,0.00027671,2]
[321847399,1712562653664,-500.0,0.00027671,2]
[321847400,1712562653675,-4435.2,0.00027671,2]
[321847401,1712562653684,-500.0,0.00027671,2]
[321847402,1712562653694,-4257.06,0.00027671,2]